[Event "Titled Tuesday Blitz May 25 2021"]
[White "Abdusattorov, Nodirbek"]
[Black "Remolar Gallen, Jose"]
[WhiteFideId "14204118"]
[BlackFideId "2215187"]
[WhiteElo "2662"]
[BlackElo "2203"]
[Result "1-0"]
[Round "01"]
[TimeControl "180+1"]
[Date "2021.05.25"]
[WhiteClock "0:02:17"]
[BlackClock "0:01:34"]

1. d4 {[%clk 0:02:59]}  Nf6 {[%clk 0:02:57]} 2. c4 {[%clk 0:02:58]}  g6 {[%clk 0:02:57]} 3. g3 {[%clk 0:02:57]}  Bg7 {[%clk 0:02:56]} 4. Bg2 {[%clk 0:02:57]}  O-O {[%clk 0:02:56]} 5. Nc3 {[%clk 0:02:57]}  d6 {[%clk 0:02:57]} 6. e3 {[%clk 0:02:58]}  Nbd7 {[%clk 0:02:53]} 7. Nge2 {[%clk 0:02:58]}  c6 {[%clk 0:02:53]} 8. O-O {[%clk 0:02:59]}  Qc7 {[%clk 0:02:54]} 9. b4 {[%clk 0:02:59]}  e5 {[%clk 0:02:54]} 10. b5 {[%clk 0:02:59]}  Re8 {[%clk 0:02:54]} 11. a4 {[%clk 0:02:57]}  exd4 {[%clk 0:02:43]} 12. Nxd4 {[%clk 0:02:57]}  Nb6 {[%clk 0:02:42]} 13. bxc6 {[%clk 0:02:56]}  Nxc4 {[%clk 0:02:40]} 14. Ncb5 {[%clk 0:02:53]}  Qb6 {[%clk 0:02:35]} 15. a5 {[%clk 0:02:35]}  Nxa5 {[%clk 0:02:28]} 16. Nxd6 {[%clk 0:02:33]}  Rd8 {[%clk 0:02:19]} 17. Rxa5 {[%clk 0:02:32]}  Rxd6 {[%clk 0:02:15]} 18. Rb5 {[%clk 0:02:31]}  Qxb5 {[%clk 0:02:15]} 19. Nxb5 {[%clk 0:02:30]}  Rxd1 {[%clk 0:02:15]} 20. Rxd1 {[%clk 0:02:31]}  bxc6 {[%clk 0:02:07]} 21. Rd8+ {[%clk 0:02:30]}  Bf8 {[%clk 0:02:07]} 22. Bxc6 {[%clk 0:02:31]}  Bb7 {[%clk 0:01:38]} 23. Rxa8 {[%clk 0:02:29]}  Bxa8 {[%clk 0:01:39]} 24. Bxa8 {[%clk 0:02:29]}  Bc5 {[%clk 0:01:39]} 25. Bb2 {[%clk 0:02:28]}  Nd7 {[%clk 0:01:37]} 26. Bc6 {[%clk 0:02:17]}  Nb6 {[%clk 0:01:34]} 27. Nxa7 {[%clk 0:02:16]}  Nc4 {[%clk 0:01:34]} 28. Bd4 {[%clk 0:02:17]} 1-0


[Site "https://www.chess.com"]

[Event "Titled Tuesday Blitz May 25 2021"]
[White "Araujo Sanchez, Josue"]
[Black "Milanovic, Vojislav"]
[WhiteFideId "6416896"]
[BlackFideId "905046"]
[WhiteElo "2140"]
[BlackElo "2354"]
[Result "1-0"]
[Round "01"]
[TimeControl "180+1"]
[Date "2021.05.25"]
[WhiteClock "0:01:21"]
[BlackClock "0:00:30"]

1. Nf3 {[%clk 0:02:59]}  Nf6 {[%clk 0:02:59]} 2. e3 {[%clk 0:03:00]}  g6 {[%clk 0:02:58]} 3. c4 {[%clk 0:03:01]}  c5 {[%clk 0:02:57]} 4. b3 {[%clk 0:03:01]}  Bg7 {[%clk 0:02:57]} 5. Bb2 {[%clk 0:03:01]}  O-O {[%clk 0:02:58]} 6. Be2 {[%clk 0:03:01]}  b6 {[%clk 0:02:58]} 7. O-O {[%clk 0:03:01]}  Bb7 {[%clk 0:02:58]} 8. d3 {[%clk 0:03:01]}  d5 {[%clk 0:02:58]} 9. cxd5 {[%clk 0:03:01]}  Nxd5 {[%clk 0:02:58]} 10. Bxg7 {[%clk 0:03:01]}  Kxg7 {[%clk 0:02:59]} 11. Qc2 {[%clk 0:03:02]}  Nc6 {[%clk 0:02:58]} 12. a3 {[%clk 0:03:01]}  e5 {[%clk 0:02:56]} 13. Nbd2 {[%clk 0:03:02]}  Qe7 {[%clk 0:02:51]} 14. Rfc1 {[%clk 0:03:02]}  Rac8 {[%clk 0:02:50]} 15. Rab1 {[%clk 0:03:03]}  Rfd8 {[%clk 0:02:50]} 16. Qb2 {[%clk 0:03:02]}  f6 {[%clk 0:02:49]} 17. Ne4 {[%clk 0:03:02]}  h6 {[%clk 0:02:44]} 18. Ng3 {[%clk 0:03:02]}  f5 {[%clk 0:02:43]} 19. Bf1 {[%clk 0:02:57]}  Nf6 {[%clk 0:02:36]} 20. Nh4 {[%clk 0:02:55]}  Kh7 {[%clk 0:02:28]} 21. Nf3 {[%clk 0:02:54]}  Na5 {[%clk 0:02:21]} 22. b4 {[%clk 0:02:54]}  cxb4 {[%clk 0:02:16]} 23. axb4 {[%clk 0:02:55]}  Nc6 {[%clk 0:02:16]} 24. b5 {[%clk 0:02:54]}  Na5 {[%clk 0:02:16]} 25. Qxe5 {[%clk 0:02:54]}  Qg7 {[%clk 0:01:55]} 26. d4 {[%clk 0:02:51]}  Bxf3 {[%clk 0:01:49]} 27. gxf3 {[%clk 0:02:50]}  h5 {[%clk 0:01:45]} 28. Bd3 {[%clk 0:02:47]}  Re8 {[%clk 0:01:41]} 29. Rxc8 {[%clk 0:02:44]}  Rxc8 {[%clk 0:01:33]} 30. h4 {[%clk 0:02:44]}  Re8 {[%clk 0:01:28]} 31. Qf4 {[%clk 0:02:44]}  Nd5 {[%clk 0:01:27]} 32. Qg5 {[%clk 0:02:41]}  Qf6 {[%clk 0:01:13]} 33. Qxf6 {[%clk 0:02:37]}  Nxf6 {[%clk 0:01:13]} 34. Ne2 {[%clk 0:02:36]}  Rc8 {[%clk 0:01:12]} 35. Rc1 {[%clk 0:02:33]}  Rxc1+ {[%clk 0:01:12]} 36. Nxc1 {[%clk 0:02:34]}  Nd5 {[%clk 0:01:12]} 37. Kf1 {[%clk 0:02:28]}  Kg7 {[%clk 0:01:10]} 38. f4 {[%clk 0:02:27]}  Kf6 {[%clk 0:01:09]} 39. Ke2 {[%clk 0:02:27]}  Nc3+ {[%clk 0:01:08]} 40. Kd2 {[%clk 0:02:27]}  Nd5 {[%clk 0:01:07]} 41. f3 {[%clk 0:02:27]}  Nb4 {[%clk 0:01:05]} 42. Bb1 {[%clk 0:02:23]}  Nd5 {[%clk 0:01:04]} 43. Ba2 {[%clk 0:02:22]}  Nc7 {[%clk 0:00:57]} 44. e4 {[%clk 0:02:19]}  fxe4 {[%clk 0:00:53]} 45. fxe4 {[%clk 0:02:19]}  Nxb5 {[%clk 0:00:54]} 46. Ke3 {[%clk 0:02:19]}  Nc3 {[%clk 0:00:52]} 47. Bg8 {[%clk 0:02:10]}  Nd1+ {[%clk 0:00:50]} 48. Kf3 {[%clk 0:02:08]}  Nc3 {[%clk 0:00:48]} 49. Nd3 {[%clk 0:02:04]}  Nc6 {[%clk 0:00:47]} 50. d5 {[%clk 0:02:01]}  Nd4+ {[%clk 0:00:45]} 51. Ke3 {[%clk 0:02:00]}  Ndb5 {[%clk 0:00:44]} 52. Be6 {[%clk 0:01:51]}  a5 {[%clk 0:00:41]} 53. e5+ {[%clk 0:01:51]}  Ke7 {[%clk 0:00:41]} 54. Bg8 {[%clk 0:01:50]}  a4 {[%clk 0:00:41]} 55. d6+ {[%clk 0:01:50]}  Nxd6 {[%clk 0:00:41]} 56. exd6+ {[%clk 0:01:50]}  Kxd6 {[%clk 0:00:42]} 57. Kd4 {[%clk 0:01:50]}  Ne2+ {[%clk 0:00:40]} 58. Ke3 {[%clk 0:01:49]}  Ng3 {[%clk 0:00:40]} 59. Ne5 {[%clk 0:01:44]}  Nf5+ {[%clk 0:00:40]} 60. Kf3 {[%clk 0:01:45]}  Nxh4+ {[%clk 0:00:41]} 61. Kg3 {[%clk 0:01:45]}  Nf5+ {[%clk 0:00:39]} 62. Kh3 {[%clk 0:01:45]}  Ne7 {[%clk 0:00:40]} 63. Ba2 {[%clk 0:01:43]}  b5 {[%clk 0:00:40]} 64. Nd3 {[%clk 0:01:41]}  Nc6 {[%clk 0:00:38]} 65. Kh4 {[%clk 0:01:37]}  b4 {[%clk 0:00:38]} 66. Bc4 {[%clk 0:01:37]}  b3 {[%clk 0:00:35]} 67. Kg5 {[%clk 0:01:37]}  Ne7 {[%clk 0:00:35]} 68. Ne5 {[%clk 0:01:28]}  b2 {[%clk 0:00:33]} 69. Ba2 {[%clk 0:01:26]}  a3 {[%clk 0:00:30]} 70. Nxg6 {[%clk 0:01:23]}  Nxg6 {[%clk 0:00:28]} 71. Kxg6 {[%clk 0:01:23]}  h4 {[%clk 0:00:29]} 72. f5 {[%clk 0:01:24]}  h3 {[%clk 0:00:29]} 73. f6 {[%clk 0:01:24]}  h2 {[%clk 0:00:30]} 74. f7 {[%clk 0:01:24]}  h1=Q {[%clk 0:00:30]} 75. f8=Q+ {[%clk 0:01:24]}  Kc6 {[%clk 0:00:30]} 76. Qa8+ {[%clk 0:01:20]}  Kb5 {[%clk 0:00:30]} 77. Qxh1 {[%clk 0:01:21]} 1-0


[Site "https://www.chess.com"]

[Event "Titled Tuesday Blitz May 25 2021"]
[White "Aravindh, Chithambaram VR."]
[Black "Navalgund, Niranjan"]
[WhiteFideId "5072786"]
[BlackFideId "5030854"]
[WhiteElo "2600"]
[BlackElo "2290"]
[Result "1-0"]
[Round "01"]
[TimeControl "180+1"]
[Date "2021.05.25"]
[WhiteClock "0:01:13"]
[BlackClock "0:02:36"]

1. Nf3 {[%clk 0:02:59]}  Nf6 {[%clk 0:03:00]} 2. b3 {[%clk 0:03:00]}  g6 {[%clk 0:02:57]} 3. Bb2 {[%clk 0:03:00]}  Bg7 {[%clk 0:02:58]} 4. g3 {[%clk 0:03:00]}  O-O {[%clk 0:02:59]} 5. Bg2 {[%clk 0:03:00]}  b6 {[%clk 0:02:59]} 6. O-O {[%clk 0:03:00]}  Bb7 {[%clk 0:03:00]} 7. c4 {[%clk 0:03:00]}  c6 {[%clk 0:03:00]} 8. d4 {[%clk 0:02:57]}  d5 {[%clk 0:03:00]} 9. Nbd2 {[%clk 0:02:52]}  Nbd7 {[%clk 0:03:00]} 10. Qc2 {[%clk 0:02:52]}  Rc8 {[%clk 0:02:58]} 11. Rac1 {[%clk 0:02:46]}  Rc7 {[%clk 0:02:59]} 12. cxd5 {[%clk 0:02:41]}  Nxd5 {[%clk 0:02:59]} 13. e4 {[%clk 0:02:26]}  Nb4 {[%clk 0:02:59]} 14. Qb1 {[%clk 0:02:27]}  c5 {[%clk 0:02:57]} 15. a3 {[%clk 0:02:23]}  Nc6 {[%clk 0:02:57]} 16. d5 {[%clk 0:02:22]}  Nce5 {[%clk 0:02:57]} 17. Nxe5 {[%clk 0:02:21]}  Nxe5 {[%clk 0:02:57]} 18. f4 {[%clk 0:02:18]}  Ng4 {[%clk 0:02:57]} 19. Bxg7 {[%clk 0:02:17]}  Kxg7 {[%clk 0:02:58]} 20. Qb2+ {[%clk 0:02:13]}  Kg8 {[%clk 0:02:58]} 21. Nc4 {[%clk 0:01:50]}  f5 {[%clk 0:02:47]} 22. Qe2 {[%clk 0:01:26]}  fxe4 {[%clk 0:02:38]} 23. Qxg4 {[%clk 0:01:23]}  Bxd5 {[%clk 0:02:35]} 24. Rcd1 {[%clk 0:01:22]}  e6 {[%clk 0:02:35]} 25. Bxe4 {[%clk 0:01:20]}  Rd7 {[%clk 0:02:36]} 26. Ne5 {[%clk 0:01:13]} 1-0


[Site "https://www.chess.com"]

[Event "Titled Tuesday Blitz May 25 2021"]
[White "Asis Gargatagli, Hipolito"]
[Black "Guliev, Logman"]
[WhiteFideId "2260735"]
[BlackFideId "13400061"]
[WhiteElo "2557"]
[BlackElo "2128"]
[Result "1-0"]
[Round "01"]
[TimeControl "180+1"]
[Date "2021.05.25"]
[WhiteClock "0:00:17"]
[BlackClock "0:00:04"]

1. e4 {[%clk 0:03:00]}  c5 {[%clk 0:02:59]} 2. Nf3 {[%clk 0:02:58]}  d6 {[%clk 0:02:59]} 3. d4 {[%clk 0:02:57]}  cxd4 {[%clk 0:02:59]} 4. Nxd4 {[%clk 0:02:58]}  Nf6 {[%clk 0:02:59]} 5. Nc3 {[%clk 0:02:59]}  a6 {[%clk 0:03:00]} 6. f3 {[%clk 0:02:58]}  e5 {[%clk 0:02:56]} 7. Nb3 {[%clk 0:02:57]}  Be6 {[%clk 0:02:56]} 8. Be3 {[%clk 0:02:56]}  Nbd7 {[%clk 0:02:56]} 9. Qd2 {[%clk 0:02:56]}  Nb6 {[%clk 0:02:55]} 10. O-O-O {[%clk 0:02:54]}  d5 {[%clk 0:02:47]} 11. Bxb6 {[%clk 0:02:40]}  Qxb6 {[%clk 0:02:46]} 12. Nxd5 {[%clk 0:02:36]}  Nxd5 {[%clk 0:02:36]} 13. exd5 {[%clk 0:02:37]}  Rd8 {[%clk 0:02:32]} 14. Qe1 {[%clk 0:02:25]}  Bxd5 {[%clk 0:01:59]} 15. Qxe5+ {[%clk 0:02:24]}  Qe6 {[%clk 0:01:57]} 16. Qc3 {[%clk 0:02:07]}  Qh6+ {[%clk 0:01:37]} 17. Kb1 {[%clk 0:02:04]}  Be7 {[%clk 0:01:37]} 18. Bc4 {[%clk 0:01:35]}  Bxc4 {[%clk 0:01:32]} 19. Qxc4 {[%clk 0:01:31]}  O-O {[%clk 0:01:31]} 20. Qc7 {[%clk 0:01:30]}  Rxd1+ {[%clk 0:01:19]} 21. Rxd1 {[%clk 0:01:29]}  Bf6 {[%clk 0:01:20]} 22. Nc5 {[%clk 0:01:10]}  Qg5 {[%clk 0:00:24]} 23. Ne4 {[%clk 0:00:19]}  Qe5 {[%clk 0:00:21]} 24. Qxe5 {[%clk 0:00:17]}  Bxe5 {[%clk 0:00:22]} 25. h3 {[%clk 0:00:18]}  f5 {[%clk 0:00:21]} 26. Nc5 {[%clk 0:00:18]}  Rc8 {[%clk 0:00:13]} 27. Nd3 {[%clk 0:00:17]}  Bd4 {[%clk 0:00:13]} 28. c3 {[%clk 0:00:17]}  Bf6 {[%clk 0:00:12]} 29. Re1 {[%clk 0:00:18]}  g6 {[%clk 0:00:12]} 30. Kc2 {[%clk 0:00:18]}  Kf7 {[%clk 0:00:12]} 31. Re2 {[%clk 0:00:18]}  Rd8 {[%clk 0:00:13]} 32. Nc5 {[%clk 0:00:17]}  b6 {[%clk 0:00:09]} 33. Nxa6 {[%clk 0:00:17]}  Ra8 {[%clk 0:00:09]} 34. Nb4 {[%clk 0:00:18]}  Ra5 {[%clk 0:00:09]} 35. a3 {[%clk 0:00:17]}  g5 {[%clk 0:00:09]} 36. Rd2 {[%clk 0:00:16]}  h5 {[%clk 0:00:09]} 37. Nd5 {[%clk 0:00:16]}  Bd8 {[%clk 0:00:06]} 38. Ne3 {[%clk 0:00:16]}  f4 {[%clk 0:00:05]} 39. Nc4 {[%clk 0:00:15]}  Rf5 {[%clk 0:00:04]} 40. Nd6+ {[%clk 0:00:16]}  Kg6 {[%clk 0:00:03]} 41. Nxf5 {[%clk 0:00:17]}  Kxf5 {[%clk 0:00:04]} 42. Rxd8 {[%clk 0:00:17]} 1-0


[Site "https://www.chess.com"]

[Event "Titled Tuesday Blitz May 25 2021"]
[White "Atanasov, Anthony"]
[Black "Petriashvili, Nikoloz"]
[WhiteFideId "2623897"]
[BlackFideId "13611216"]
[WhiteElo "1889"]
[BlackElo "2430"]
[Result "0-1"]
[Round "01"]
[TimeControl "180+1"]
[Date "2021.05.25"]
[WhiteClock "0:01:24"]
[BlackClock "0:02:18"]

1. d4 {[%clk 0:03:00]}  Nf6 {[%clk 0:03:00]} 2. Nf3 {[%clk 0:03:00]}  g6 {[%clk 0:03:00]} 3. Bf4 {[%clk 0:03:01]}  Bg7 {[%clk 0:03:01]} 4. e3 {[%clk 0:03:01]}  O-O {[%clk 0:03:01]} 5. Be2 {[%clk 0:03:01]}  b6 {[%clk 0:03:01]} 6. O-O {[%clk 0:03:02]}  Bb7 {[%clk 0:03:02]} 7. c4 {[%clk 0:03:02]}  d6 {[%clk 0:02:59]} 8. Nc3 {[%clk 0:03:02]}  Nbd7 {[%clk 0:02:58]} 9. Qc2 {[%clk 0:03:01]}  Re8 {[%clk 0:02:58]} 10. Rfd1 {[%clk 0:03:00]}  Qc8 {[%clk 0:02:56]} 11. e4 {[%clk 0:02:57]}  e5 {[%clk 0:02:53]} 12. dxe5 {[%clk 0:02:51]}  dxe5 {[%clk 0:02:48]} 13. Bg3 {[%clk 0:02:46]}  Nc5 {[%clk 0:02:44]} 14. Nd2 {[%clk 0:02:41]}  Nfd7 {[%clk 0:02:41]} 15. b4 {[%clk 0:02:35]}  Ne6 {[%clk 0:02:41]} 16. Nb3 {[%clk 0:02:23]}  Nd4 {[%clk 0:02:40]} 17. Nxd4 {[%clk 0:02:15]}  exd4 {[%clk 0:02:41]} 18. Nb5 {[%clk 0:02:12]}  Bxe4 {[%clk 0:02:35]} 19. Bd3 {[%clk 0:02:05]}  Bxd3 {[%clk 0:02:32]} 20. Qxd3 {[%clk 0:02:06]}  Ne5 {[%clk 0:02:33]} 21. Bxe5 {[%clk 0:02:04]}  Bxe5 {[%clk 0:02:33]} 22. Nxd4 {[%clk 0:02:00]}  Qd7 {[%clk 0:02:32]} 23. f4 {[%clk 0:01:36]}  Bxd4+ {[%clk 0:02:26]} 24. Qxd4 {[%clk 0:01:26]}  Re1+ {[%clk 0:02:26]} 25. Kf2 {[%clk 0:01:26]}  Qxd4+ {[%clk 0:02:25]} 26. Kxe1 {[%clk 0:01:24]}  Re8+ {[%clk 0:02:18]} 0-1


[Site "https://www.chess.com"]

[Event "Titled Tuesday Blitz May 25 2021"]
[White "Baches Garcia, Guillermo"]
[Black "Abdrlauf, Elham"]
[WhiteFideId "2209764"]
[BlackFideId "1533533"]
[WhiteElo "2414"]
[BlackElo "2326"]
[Result "0-1"]
[Round "01"]
[TimeControl "180+1"]
[Date "2021.05.25"]
[WhiteClock "0:00:02"]
[BlackClock "0:00:09"]

1. e4 {[%clk 0:03:00]}  c6 {[%clk 0:02:59]} 2. c4 {[%clk 0:02:59]}  d5 {[%clk 0:03:00]} 3. exd5 {[%clk 0:02:59]}  cxd5 {[%clk 0:03:01]} 4. cxd5 {[%clk 0:03:00]}  Nf6 {[%clk 0:03:02]} 5. Nc3 {[%clk 0:03:01]}  g6 {[%clk 0:03:02]} 6. Bc4 {[%clk 0:02:59]}  Bg7 {[%clk 0:03:03]} 7. Nf3 {[%clk 0:02:59]}  O-O {[%clk 0:03:04]} 8. O-O {[%clk 0:02:58]}  Nbd7 {[%clk 0:03:04]} 9. Qb3 {[%clk 0:02:59]}  Nb6 {[%clk 0:03:03]} 10. d3 {[%clk 0:02:59]}  Bg4 {[%clk 0:03:02]} 11. Ne5 {[%clk 0:02:56]}  Qc7 {[%clk 0:03:02]} 12. Re1 {[%clk 0:02:31]}  Rac8 {[%clk 0:02:48]} 13. Nb5 {[%clk 0:02:17]}  Qb8 {[%clk 0:02:32]} 14. Nxg4 {[%clk 0:02:13]}  Nxg4 {[%clk 0:02:31]} 15. g3 {[%clk 0:02:13]}  Ne5 {[%clk 0:01:45]} 16. Bf4 {[%clk 0:01:56]}  Nf3+ {[%clk 0:01:40]} 17. Kg2 {[%clk 0:01:41]}  Nxe1+ {[%clk 0:01:33]} 18. Rxe1 {[%clk 0:01:42]}  Qa8 {[%clk 0:01:33]} 19. Nc7 {[%clk 0:01:37]}  Rxc7 {[%clk 0:01:25]} 20. Bxc7 {[%clk 0:01:36]}  Bf6 {[%clk 0:01:09]} 21. Bxb6 {[%clk 0:01:27]}  axb6 {[%clk 0:01:09]} 22. Qxb6 {[%clk 0:01:27]}  Rd8 {[%clk 0:01:01]} 23. h4 {[%clk 0:01:17]}  Rd6 {[%clk 0:01:00]} 24. Qb3 {[%clk 0:01:10]}  Qa5 {[%clk 0:00:58]} 25. Re4 {[%clk 0:01:06]}  Rb6 {[%clk 0:00:55]} 26. Qd1 {[%clk 0:01:01]}  Rxb2 {[%clk 0:00:52]} 27. h5 {[%clk 0:00:54]}  Qc5 {[%clk 0:00:42]} 28. Qf3 {[%clk 0:00:48]}  Kg7 {[%clk 0:00:25]} 29. hxg6 {[%clk 0:00:43]}  hxg6 {[%clk 0:00:26]} 30. Re2 {[%clk 0:00:42]}  Rb1 {[%clk 0:00:21]} 31. Qe4 {[%clk 0:00:35]}  b5 {[%clk 0:00:16]} 32. Bb3 {[%clk 0:00:34]}  Qc1 {[%clk 0:00:15]} 33. Kf3 {[%clk 0:00:25]}  Bg5 {[%clk 0:00:14]} 34. Qd4+ {[%clk 0:00:10]}  Kh7 {[%clk 0:00:11]} 35. Rc2 {[%clk 0:00:04]}  Qd1+ {[%clk 0:00:08]} 36. Ke4 {[%clk 0:00:02]}  Qg4+ {[%clk 0:00:09]} 37. f4 {[%clk 0:00:02]}  Re1+ {[%clk 0:00:09]} 0-1


[Site "https://www.chess.com"]

[Event "Titled Tuesday Blitz May 25 2021"]
[White "Batsiashvili, Nino"]
[Black "Lazavik, Denis"]
[WhiteFideId "13602993"]
[BlackFideId "13515110"]
[WhiteElo "2286"]
[BlackElo "2436"]
[Result "0-1"]
[Round "01"]
[TimeControl "180+1"]
[Date "2021.05.25"]
[WhiteClock "0:00:09"]
[BlackClock "0:00:15"]

1. d4 {[%clk 0:02:58]}  Nf6 {[%clk 0:02:59]} 2. c4 {[%clk 0:02:58]}  e6 {[%clk 0:02:59]} 3. Nc3 {[%clk 0:02:59]}  Bb4 {[%clk 0:02:57]} 4. Nf3 {[%clk 0:02:59]}  c5 {[%clk 0:02:51]} 5. g3 {[%clk 0:02:56]}  cxd4 {[%clk 0:02:46]} 6. Nxd4 {[%clk 0:02:57]}  O-O {[%clk 0:02:42]} 7. Bg2 {[%clk 0:02:57]}  d5 {[%clk 0:02:40]} 8. O-O {[%clk 0:02:49]}  dxc4 {[%clk 0:02:11]} 9. Ndb5 {[%clk 0:02:36]}  Nc6 {[%clk 0:01:50]} 10. Bg5 {[%clk 0:02:26]}  a6 {[%clk 0:01:43]} 11. a3 {[%clk 0:02:04]}  Be7 {[%clk 0:01:33]} 12. Bxc6 {[%clk 0:01:42]}  bxc6 {[%clk 0:01:28]} 13. Nd4 {[%clk 0:01:43]}  Bb7 {[%clk 0:01:20]} 14. Nf3 {[%clk 0:01:35]}  h6 {[%clk 0:01:12]} 15. Bf4 {[%clk 0:01:32]}  Nd5 {[%clk 0:01:10]} 16. Be5 {[%clk 0:01:30]}  c5 {[%clk 0:01:07]} 17. Qc2 {[%clk 0:01:24]}  f6 {[%clk 0:00:59]} 18. Nxd5 {[%clk 0:01:14]}  exd5 {[%clk 0:00:55]} 19. Bf4 {[%clk 0:01:08]}  Qd7 {[%clk 0:00:50]} 20. Bxh6 {[%clk 0:01:04]}  Qg4 {[%clk 0:00:38]} 21. Be3 {[%clk 0:01:02]}  Kh8 {[%clk 0:00:35]} 22. Kg2 {[%clk 0:00:52]}  Rad8 {[%clk 0:00:31]} 23. Rfd1 {[%clk 0:00:50]}  d4 {[%clk 0:00:25]} 24. Qxc4 {[%clk 0:00:49]}  Bd5 {[%clk 0:00:24]} 25. Qa4 {[%clk 0:00:49]}  Qe4 {[%clk 0:00:23]} 26. Bxd4 {[%clk 0:00:32]}  Qxe2 {[%clk 0:00:21]} 27. Bxc5 {[%clk 0:00:14]}  Qxf3+ {[%clk 0:00:20]} 28. Kf1 {[%clk 0:00:12]}  Qg2+ {[%clk 0:00:16]} 29. Ke2 {[%clk 0:00:13]}  Bf3+ {[%clk 0:00:15]} 30. Ke3 {[%clk 0:00:13]}  Bxc5+ {[%clk 0:00:15]} 31. Kf4 {[%clk 0:00:10]}  g5+ {[%clk 0:00:15]} 32. Kf5 {[%clk 0:00:09]}  Qh3+ {[%clk 0:00:15]} 33. Kg6 {[%clk 0:00:09]}  Qh7# {[%clk 0:00:15]} 0-1


[Site "https://www.chess.com"]

[Event "Titled Tuesday Blitz May 25 2021"]
[White "Calin, Alexandru"]
[Black "Kamsky, Gata"]
[WhiteFideId "1222961"]
[BlackFideId "2000024"]
[WhiteElo "1993"]
[BlackElo "2644"]
[Result "0-1"]
[Round "01"]
[TimeControl "180+1"]
[Date "2021.05.25"]
[WhiteClock "0:00:24"]
[BlackClock "0:01:38"]

1. d4 {[%clk 0:02:57]}  d5 {[%clk 0:02:58]} 2. c4 {[%clk 0:02:56]}  c6 {[%clk 0:02:56]} 3. Nc3 {[%clk 0:02:56]}  Nf6 {[%clk 0:02:54]} 4. Nf3 {[%clk 0:02:55]}  a6 {[%clk 0:02:53]} 5. cxd5 {[%clk 0:02:54]}  cxd5 {[%clk 0:02:50]} 6. g3 {[%clk 0:02:54]}  Bf5 {[%clk 0:02:42]} 7. Bg2 {[%clk 0:02:54]}  e6 {[%clk 0:02:41]} 8. O-O {[%clk 0:02:55]}  Nc6 {[%clk 0:02:39]} 9. Bg5 {[%clk 0:02:38]}  Be7 {[%clk 0:02:35]} 10. h3 {[%clk 0:02:33]}  h6 {[%clk 0:02:33]} 11. Bf4 {[%clk 0:02:02]}  O-O {[%clk 0:02:27]} 12. Ne5 {[%clk 0:01:57]}  Rc8 {[%clk 0:02:26]} 13. Nxc6 {[%clk 0:01:52]}  Rxc6 {[%clk 0:02:23]} 14. Rc1 {[%clk 0:01:48]}  Qd7 {[%clk 0:02:20]} 15. Qb3 {[%clk 0:01:13]}  Rfc8 {[%clk 0:02:11]} 16. Na4 {[%clk 0:01:12]}  b5 {[%clk 0:02:02]} 17. Rxc6 {[%clk 0:01:05]}  Rxc6 {[%clk 0:02:00]} 18. Nc3 {[%clk 0:01:02]}  b4 {[%clk 0:01:58]} 19. Na4 {[%clk 0:00:54]}  Bc2 {[%clk 0:01:57]} 20. Nb6 {[%clk 0:00:25]}  Qb7 {[%clk 0:01:52]} 21. Nxd5 {[%clk 0:00:25]}  Bxb3 {[%clk 0:01:40]} 22. Nxe7+ {[%clk 0:00:24]}  Qxe7 {[%clk 0:01:40]} 23. Bxc6 {[%clk 0:00:24]}  Bxa2 {[%clk 0:01:38]} 0-1


[Site "https://www.chess.com"]

[Event "Titled Tuesday Blitz May 25 2021"]
[White "Cardoso Cardoso, Jose Gabriel"]
[Black "Carroll, Thomas"]
[WhiteFideId "4430492"]
[BlackFideId "450111"]
[WhiteElo "2343"]
[BlackElo "1950"]
[Result "1-0"]
[Round "01"]
[TimeControl "180+1"]
[Date "2021.05.25"]
[WhiteClock "0:00:10"]
[BlackClock "0:00:07"]

1. Nf3 {[%clk 0:02:58]}  Nf6 {[%clk 0:02:58]} 2. b3 {[%clk 0:02:46]}  g6 {[%clk 0:02:58]} 3. Bb2 {[%clk 0:02:46]}  Bg7 {[%clk 0:02:59]} 4. e3 {[%clk 0:02:46]}  O-O {[%clk 0:02:59]} 5. d4 {[%clk 0:02:47]}  d6 {[%clk 0:02:59]} 6. Be2 {[%clk 0:02:47]}  Nbd7 {[%clk 0:03:00]} 7. c4 {[%clk 0:02:46]}  c6 {[%clk 0:03:00]} 8. Nc3 {[%clk 0:02:45]}  Qc7 {[%clk 0:03:00]} 9. O-O {[%clk 0:02:43]}  e5 {[%clk 0:03:00]} 10. Qc2 {[%clk 0:02:38]}  a5 {[%clk 0:02:56]} 11. Rfd1 {[%clk 0:02:28]}  Rd8 {[%clk 0:02:49]} 12. Rac1 {[%clk 0:02:11]}  exd4 {[%clk 0:02:44]} 13. Nxd4 {[%clk 0:02:09]}  Ne5 {[%clk 0:02:36]} 14. h3 {[%clk 0:02:08]}  d5 {[%clk 0:01:49]} 15. f4 {[%clk 0:01:53]}  Ned7 {[%clk 0:01:35]} 16. cxd5 {[%clk 0:01:52]}  cxd5 {[%clk 0:01:21]} 17. Nxd5 {[%clk 0:01:50]}  Nxd5 {[%clk 0:01:13]} 18. Qxc7 {[%clk 0:01:48]}  Nxc7 {[%clk 0:01:14]} 19. Rxc7 {[%clk 0:01:48]}  Nb6 {[%clk 0:01:08]} 20. Bf3 {[%clk 0:01:29]}  Nd5 {[%clk 0:01:03]} 21. Bxd5 {[%clk 0:01:12]}  Rxd5 {[%clk 0:01:02]} 22. Rdc1 {[%clk 0:01:12]}  Rd8 {[%clk 0:00:45]} 23. Kf2 {[%clk 0:00:49]}  a4 {[%clk 0:00:45]} 24. b4 {[%clk 0:00:49]}  a3 {[%clk 0:00:37]} 25. Bxa3 {[%clk 0:00:33]}  Bxd4 {[%clk 0:00:34]} 26. exd4 {[%clk 0:00:33]}  Be6 {[%clk 0:00:20]} 27. R1c3 {[%clk 0:00:29]}  Ra7 {[%clk 0:00:19]} 28. b5 {[%clk 0:00:24]}  Rda8 {[%clk 0:00:18]} 29. Bd6 {[%clk 0:00:17]}  Rxa2+ {[%clk 0:00:19]} 30. Rc2 {[%clk 0:00:17]}  Bd5 {[%clk 0:00:17]} 31. Be5 {[%clk 0:00:13]}  Rxc2+ {[%clk 0:00:17]} 32. Rxc2 {[%clk 0:00:14]}  Ra2 {[%clk 0:00:17]} 33. Rxa2 {[%clk 0:00:14]}  Bxa2 {[%clk 0:00:18]} 34. g4 {[%clk 0:00:12]}  Bc4 {[%clk 0:00:18]} 35. Ke3 {[%clk 0:00:10]}  Bxb5 {[%clk 0:00:18]} 36. d5 {[%clk 0:00:10]}  Kf8 {[%clk 0:00:17]} 37. Kd4 {[%clk 0:00:10]}  Ke8 {[%clk 0:00:12]} 38. Kc5 {[%clk 0:00:10]}  Ba4 {[%clk 0:00:12]} 39. Kb6 {[%clk 0:00:10]}  Bb3 {[%clk 0:00:13]} 40. d6 {[%clk 0:00:10]}  Kd7 {[%clk 0:00:11]} 41. Kxb7 {[%clk 0:00:09]}  Bd5+ {[%clk 0:00:11]} 42. Kb6 {[%clk 0:00:09]}  Bg2 {[%clk 0:00:12]} 43. h4 {[%clk 0:00:10]}  Bf3 {[%clk 0:00:12]} 44. g5 {[%clk 0:00:10]}  Be4 {[%clk 0:00:11]} 45. Kc5 {[%clk 0:00:10]}  Bf3 {[%clk 0:00:11]} 46. Bc3 {[%clk 0:00:11]}  Bg4 {[%clk 0:00:11]} 47. Bb4 {[%clk 0:00:11]}  Bf5 {[%clk 0:00:11]} 48. Kd4 {[%clk 0:00:12]}  Be6 {[%clk 0:00:11]} 49. Ke5 {[%clk 0:00:12]}  Bc4 {[%clk 0:00:08]} 50. Kf6 {[%clk 0:00:12]}  Bb3 {[%clk 0:00:08]} 51. Kg7 {[%clk 0:00:13]}  Bc4 {[%clk 0:00:08]} 52. Kxh7 {[%clk 0:00:13]}  Be6 {[%clk 0:00:08]} 53. Kg7 {[%clk 0:00:13]}  Bd5 {[%clk 0:00:08]} 54. f5 {[%clk 0:00:13]}  gxf5 {[%clk 0:00:08]} 55. h5 {[%clk 0:00:13]}  f4 {[%clk 0:00:09]} 56. g6 {[%clk 0:00:12]}  fxg6 {[%clk 0:00:09]} 57. h6 {[%clk 0:00:12]}  f3 {[%clk 0:00:07]} 58. Bc5 {[%clk 0:00:11]}  g5 {[%clk 0:00:07]} 59. h7 {[%clk 0:00:11]}  g4 {[%clk 0:00:07]} 60. h8=Q {[%clk 0:00:11]}  g3 {[%clk 0:00:08]} 61. Qf8 {[%clk 0:00:10]}  g2 {[%clk 0:00:07]} 62. Qe7+ {[%clk 0:00:09]}  Kc6 {[%clk 0:00:08]} 63. Qc7+ {[%clk 0:00:09]}  Kb5 {[%clk 0:00:07]} 64. Bf2 {[%clk 0:00:10]} 1-0


[Site "https://www.chess.com"]